Cogmind - Beta 11 X8 @@@ ROGUE MODE // 2021.11.14 @ 23:14:39 Player: Luna Result: Destroyed by as-22491 with Assembled Focal Cannon Performance ------------- Evolutions (3) 1500 Regions Visited (10) 2000 Robots Destroyed (112) 560 Value Destroyed (3499) 3499 Prototype IDs (44) 880 Alien Tech Used (0) 0 Bonus (2782) 2782 TOTAL SCORE: 11221 Bonus ------- High Alert Combat Kills 110 Follower Combat Kills 283 Aligned with FarCom 300 Met Imprinter 300 Destroyed Z-Imprinter 1000 Triggered Deep Caves Wall 500 Exposed GOLEM Chamber 500 Friendly Fire -211 Cogmind --------- Core Integrity 0/700 Matter 11/300 Energy 35/290 System Corruption 4% Temperature Cool (6) Movement Treading (325) Ox2 Location -7/Deep Caves Parts ------- > --- POWER (1) -------- Improved Deuterium Engine > --- PROPULSION (3) --- Armored Treads Medium Treads Assembled Alloy Leg > --- UTILITY (6) ------ Huge Storage Unit Improved Terrain Scanner Advanced Terrain Scan Processor Advanced Phase Shifter GOLEM Unit > --- WEAPON (3) ------- Rocket Array Makeshift Hammer Chainsword > --- INVENTORY (25) --- Micro Nuclear Core Light Angular Momentum Engine Improved Heat Sink Zionite Biocell (600) Particle Charger Zionite Laser-S Plasma Cannon Advanced Assault Cannon Peak State ------------ > --- POWER ------------ Zionite Light DM Reactor > --- PROPULSION ------- Armored Wheel Armored Huge Wheel > --- UTILITY ---------- Experimental Heat Sink Huge Storage Unit Improved Terrain Scanner Advanced Terrain Scan Processor Zionite Heavy Carapace > --- WEAPON ----------- AWS/Autocannon > --- INVENTORY -------- Cooled Ion Engine Improved Deuterium Engine Micro Nuclear Core Light Angular Momentum Engine Armored Treads Armored Treads Compact Wheel Compact Wheel Improved Heat Sink Zionite Biocell Particle Charger Advanced Phase Shifter Zionite Weapon Casing Zionite Weapon Casing Zionite Weapon Casing Hardened Light Armor Plating Zionite Laser-S Zionite Laser-S Zionite Laser-M Plasma Cannon Advanced Assault Cannon Heavy Missile Launcher Rocket Array Makeshift Hammer Chainsword [Rating: 86] Favorites ----------- Power Heavy Deuterium Engine Engine Heavy Deuterium Engine Power Core Light Nuclear Core Reactor Zionite Light DM Reactor Propulsion Armored Wheel Treads Light Treads Leg Assembled Alloy Leg Wheel Armored Wheel Utility Huge Storage Unit Device Advanced Heat Sink Storage Huge Storage Unit Processor Improved Targeting Computer Protection Layered Light Armor Plating Weapon Gatling Laser Energy Gun Gatling Laser Energy Cannon Advanced Beam Cannon Ballistic Gun Shotgun Ballistic Cannon AWS/Autocannon Launcher Grenade Launcher Impact Weapon Flail Slashing Weapon Chainsword Build | -11 -10 -10 -10 -9 -8 -7 -7 -7 -7 -7 ------- Run | Scr Mat Min Exi Min Mat Fac Low Low Zio Dee Slots Evolved 6 | . . . . . 4 2 . . . . Power . | . . . . . . . . . . . Propulsion 1 | . . . . . 1 . . . . . Utility 4 | . . . . . 2 2 . . . . Weapon 1 | . . . . . 1 . . . . . Parts Attached 172 | 3 13 8 2 1 37 33 11 6 16 42 Power 14 | . . 2 . . 2 3 . . . 7 Engine 8 | . . 1 . . 2 3 . . . 2 Core 1 | . . 1 . . . . . . . . Reactor 5 | . . . . . . . . . . 5 Propulsion 26 | 2 3 1 1 1 6 5 . 2 . 5 Treads 10 | 2 3 . . . . 1 . 1 . 3 Leg . | . . . . . . . . . . . Wheel 16 | . . 1 1 1 6 4 . 1 . 2 Hover . | . . . . . . . . . . . Flight . | . . . . . . . . . . . Utility 51 | . 3 . 1 . 9 7 3 2 8 18 Device 21 | . 2 . . . 3 2 1 1 5 7 Storage 6 | . 1 . 1 . 3 . . . . 1 Processor 4 | . . . . . 1 1 1 . 1 . Hackware . | . . . . . . . . . . . Protection 20 | . . . . . 2 4 1 1 2 10 Artifact . | . . . . . . . . . . . Weapon 81 | 1 7 5 . . 20 18 8 2 8 12 Energy Gun 36 | . . . . . 12 10 4 1 4 5 Energy Cannon 2 | . . . . . 1 . 1 . . . Ballistic Gun 10 | 1 4 2 . . 3 . . . . . Ballistic Cannon 5 | . . . . . 1 . . 1 1 2 Launcher 11 | . 1 3 . . 1 2 1 . . 3 Special Weapon . | . . . . . . . . . . . Impact Weapon 12 | . 2 . . . 2 6 . . 1 1 Slashing Weapon 5 | . . . . . . . 2 . 2 1 Piercing Weapon . | . . . . . . . . . . . Special Melee Weapon . | . . . . . . . . . . . Unidentified Prototypes 20 | . . . . . 6 2 . . 2 10 Parts Lost 30 | . . 3 . . 4 5 1 1 . 16 Power 3 | . . 1 . . . . . . . 2 Propulsion 9 | . . 1 . . 2 1 . . . 5 Utility 9 | . . . . . 1 . 1 1 . 6 Weapon 9 | . . 1 . . 1 4 . . . 3 Highest Loss Streak 11 | . . 2 . . 1 2 1 1 . 11 Average Slot Usage (%) 93 | . 97 100 100 100 96 98 91 76 90 76 Engine 8 | . 14 10 14 14 9 7 7 7 7 2 Treads 3 | . 28 18 1 . . . . 2 . 1 Wheel 16 | . . 9 26 28 24 21 15 11 15 13 Device 13 | . 11 14 14 14 11 14 15 8 12 15 Storage 9 | . 14 14 14 14 12 7 7 7 7 7 Processor 7 | . . . . . 5 14 13 7 7 7 Protection 7 | . . . . . 5 7 8 21 17 9 Energy Gun 10 | . . . . . 18 20 8 1 13 5 Ballistic Gun 4 | . 19 25 14 14 4 . . . . . Launcher 2 | . . 2 14 14 . . 5 . . . Impact Weapon 1 | . 7 . . . 1 1 4 . . . Slashing Weapon 1 | . . . . . . . 2 . 5 . Naked Turns . | . . . . . . . . . . . Heaviest Build 163 | 11 31 32 52 52 117 111 114 163 162 162 Greatest Support 68 | 40 40 40 32 32 42 40 40 40 40 68 Greatest Overweight (x) 8 | . . 1 1 1 4 8 2 5 4 5 Average Overweight (x) 1 | . . . 1 1 1 2 2 4 2 2 Largest Inventory Capacity 25 | 8 15 15 20 20 25 25 25 25 25 25 Average Capacity 22 | 8 14 15 19 20 20 25 25 25 25 25 Most Carried 25 | 7 14 15 20 20 24 25 25 25 25 25 Average Carried 21 | 5 12 13 16 19 19 24 24 23 24 23 Final Capacity 25 | 8 15 15 20 20 25 25 25 25 25 25 Final Carried 25 | 4 14 14 20 20 23 25 25 25 24 8 Class Distribution -------------------- 44% | Mutant 17% | Scavenger-Skirmisher 13% | Skirmisher 10% | Derelict-Mutant 7% | Tank 4% | Scavenger-Assassin Dominant Class ---------------- Mutant | -10/Materials Mutant | -10/Mines Mutant | -10/Exiles Mutant | -9/Mines Scavenger-Skirmisher | -8/Materials Scavenger-Skirmisher | -7/Factory Mutant | -7/Lower Caves Tank | -7/Lower Caves Derelict-Mutant | -7/Zion Skirmisher | -7/Deep Caves Resources | -11 -10 -10 -10 -9 -8 -7 -7 -7 -7 -7 ----------- Run | Scr Mat Min Exi Min Mat Fac Low Low Zio Dee Matter Collected 2270 | 218 204 337 20 22 467 258 280 78 106 280 Remotely . | . . . . . . . . . . . Salvage Created 4581 | . 301 270 . 22 1394 1533 127 360 . 574 Parts 179 | . 19 12 . 3 58 52 1 9 . 25 Haulers Intercepted 4 | . . . . . 3 1 . . . . Recyclers Shooed 2 | . . . . . 1 1 . . . . Parts Field Recycled . | . . . . . . . . . . . Retrieved Matter . | . . . . . . . . . . . Parts Self-Destructed 17 | . . . . . . . 4 13 . . Prevented 2 | . . . . . . . 2 . . . Kills | -11 -10 -10 -10 -9 -8 -7 -7 -7 -7 -7 ------- Run | Scr Mat Min Exi Min Mat Fac Low Low Zio Dee Combat Hostiles Destroyed 112 | . 4 19 . . 18 12 3 10 . 46 Melee 1 | . . . . . . . . . . 1 Guns 26 | . 4 2 . . 10 9 1 . . . Cannons 28 | . . . . . 8 . . 10 . 10 AOE 54 | . . 17 . . . . 2 . . 35 Classes Destroyed 20 | . 8 2 . . 3 2 1 1 . 3 Worker 12 | . 1 . . . 5 6 . . . . Builder 7 | . 2 . . . 4 1 . . . . Tunneler 3 | . 1 1 . 1 . . . . . . Hauler 4 | . . . . . 3 1 . . . . Recycler 13 | . 1 1 . . 3 8 . . . . Operator 4 | . 2 . . . 2 . . . . . Watcher 7 | . 1 . . . 1 5 . . . . Swarmer 10 | . 3 3 . . . 3 . 1 . . Grunt 22 | . 1 2 . . 10 2 2 5 . . Brawler 3 | . . . . . . 1 1 1 . . Duelist 2 | . . . . . . . . 2 . . Sentry 9 | . . . . . 7 1 . 1 . . Demolisher 2 | . . 2 . . . . . . . . Hunter 2 | . . . . . 1 1 . . . . Programmer 4 | . . . . . . 4 . . . . Z-Light 6 | . . . . . . . . . . 6 Samaritan 2 | . . . . . . . 2 . . . Assembler 1 | . . . . . . . . . . 1 Assembled 50 | . . 12 . . . . . . . 38 Golem 2 | . . . . . . . . . . 2 Best Kill Streak 41 | . 3 13 . 1 9 5 3 5 . 41 Combat Bots Only 40 | . 3 13 . . 8 4 3 5 . 40 Max Kills in Single Turn 6 | . 2 3 . 1 2 2 2 1 . 6 Gunslinging 1 | . 1 . . . . 1 . . . . Exploded 6 | . . 3 . . . . 2 . . 6 Melee 1 | . . . . . . . . . . 1 Uniques/NPCs Destroyed 1 | . . . . . . . . . . 1 Z-Imprinter (-7/Deep Caves) Combat | -11 -10 -10 -10 -9 -8 -7 -7 -7 -7 -7 -------- Run | Scr Mat Min Exi Min Mat Fac Low Low Zio Dee Damage Taken 6169 | . 147 608 . 9 684 1066 165 689 . 2801 Core 993 | . 30 107 . 9 144 75 11 159 . 458 Absorbed by Shields . | . . . . . . . . . . . Core Remaining (%) 71 | 100 . . . 41 73 . . . . . Volleys Fired 187 | . 12 26 . 3 52 70 13 1 . 10 Largest 3 | . 2 2 . 1 3 3 2 3 . 2 Hottest 221 | . 46 56 . 23 181 221 160 216 . 99 Shots Fired 554 | . 24 37 . 3 169 204 15 33 . 69 Gun 418 | . 24 20 . 3 150 204 12 3 . 2 Cannon 106 | . . . . . 19 . . 30 . 57 Launcher 30 | . . 17 . . . . 3 . . 10 Special . | . . . . . . . . . . . Kinetic 184 | . 24 20 . 3 50 . . 30 . 57 Thermal 336 | . . . . . 115 204 12 3 . 2 Explosive 28 | . . 15 . . . . 3 . . 10 Electromagnetic 6 | . . 2 . . 4 . . . . . Robot Hit Streak 21 | . 6 5 . 3 17 18 8 21 . 15 Robot Miss Streak 6 | . 5 6 . 3 4 6 2 2 . 4 Penetration Max . | . . . . . . . . . . . Secondary Targets 5 | . 2 . . . 1 2 . . . . Max Gunslinging Chain 1 | . 1 . . . 1 1 . . . . Autonomous 106 | . . . . . 19 . . 30 . 57 Shots Hit Robots 365 | . 23 19 . 2 106 124 14 27 . 50 Core Hits 353 | . 9 46 . 2 45 51 14 14 . 172 Critical Kills . | . . . . . . . . . . . Critical Parts Destroyed 2 | . 1 . . 1 . . . . . . Critical Strikes 21 | . 1 . . 1 8 8 . . . 3 Burn 14 | . . . . . 6 8 . . . . Destroy 2 | . 1 . . 1 . . . . . . Blast 5 | . . . . . 2 . . . . 3 Melee Attacks 74 | . 15 . . . 12 21 11 . 14 1 Impact 59 | . 15 . . . 12 21 5 . 6 . Slashing 15 | . . . . . . . 6 . 8 1 Piercing . | . . . . . . . . . . . Sneak Attacks 9 | . 6 . . . 1 2 . . . . Combat Hostiles . | . . . . . . . . . . . Follow-up Attacks . | . . . . . . . . . . . Damage Inflicted 18193 | . 587 1144 . 30 3008 2957 714 1937 . 7816 Guns 5027 | . 202 181 . 30 1603 2634 239 82 . 56 Cannons 6439 | . . . . . 1348 . . 1855 . 3236 Explosions 6080 | . . 957 . . . 167 475 . . 4481 Melee 641 | . 385 . . . 57 156 . . . 43 Ramming 6 | . . 6 . . . . . . . . Kinetic 7203 | . 202 181 . 30 1699 . . 1855 . 3236 Thermal 4385 | . . . . . 1207 2801 239 82 . 56 Explosive 5824 | . . 868 . . . . 475 . . 4481 Electromagnetic 134 | . . 89 . . 45 . . . . . Impact 598 | . 385 . . . 57 156 . . . . Slashing 43 | . . . . . . . . . . 43 Piercing . | . . . . . . . . . . . Highest Corruption 8 | . . . . . 2 6 8 8 8 4 Average Corruption 4 | . . . . . 2 2 6 8 8 4 Corruption Purged . | . . . . . . . . . . . Effects 68 | . . . . . 7 17 30 12 1 1 Message Errors 25 | . . . . . 1 9 10 3 1 1 Matter Fused 12 | . . . . . . 2 6 4 . . Heat Flow Errors 6 | . . . . . 1 1 3 1 . . Energy Discharges 9 | . . . . . 1 2 5 1 . . Parts Rejected 1 | . . . . . . . . 1 . . Data Loss (minor) 10 | . . . . . 4 2 3 1 . . Data Loss (major) 4 | . . . . . . . 3 1 . . Weapon Failures 1 | . . . . . . 1 . . . . Overload Shots . | . . . . . . . . . . . Overflow Damage 1213 | . 156 6 . . 140 115 14 283 . 499 Projectiles 776 | . . . . . 113 . . 283 . 380 Explosions 148 | . . 6 . . . 9 14 . . 119 Melee 289 | . 156 . . . 27 106 . . . . Knockbacks 29 | . 1 . . . 2 . . 11 . 15 Impact 1 | . 1 . . . . . . . . . Kinetic 27 | . . . . . 2 . . 10 . 15 Secondary 1 | . . . . . . . . 1 . . Self-Inflicted Damage 591 | . . 57 . . . 39 89 . . 406 Shots 19 | . . 4 . . . 1 3 . . 11 Rammed 1 | . . 1 . . . . . . . . Targets Rammed 1 | . . 1 . . . . . . . . Kicked . | . . . . . . . . . . . Crushed . | . . . . . . . . . . . Highest Temperature 437 | . 1 64 . . 437 299 239 334 . . Average Temperature 59 | . 1 31 . . 72 45 83 127 . . Received Heat Transfer 1237 | . 18 173 . . 333 144 18 144 . 407 Siege Activations . | . . . . . . . . . . . Robots Corrupted . | . . . . . . . . . . . Combat Hostiles . | . . . . . . . . . . . Parts Fried 5 | . 3 . . . 2 . . . . . Impact Corruptions 10 | . 6 . . . 1 3 . . . . Robots Melted 4 | . . . . . 1 3 . . . . Combat Hostiles 3 | . . . . . . 3 . . . . Parts Melted 26 | . . . . . 6 20 . . . . Heat Transferred 9436 | . . . . . 2849 5776 550 187 . 74 Parts Sabotaged . | . . . . . . . . . . . Parts Stolen . | . . . . . . . . . . . Parts Stripped . | . . . . . . . . . . . Power Chain Reactions . | . . . . . . . . . . . Missiles Intercepted . | . . . . . . . . . . . Alert | -11 -10 -10 -10 -9 -8 -7 -7 -7 -7 -7 ------- Run | Scr Mat Min Exi Min Mat Fac Low Low Zio Dee Peak Influence 526 | . 105 122 . 117 361 526 . . . . Initial 109 | . . 27 . . 45 109 . . . . Average 193 | . 39 98 . 6 225 298 . . . . Maximum Alert Level 2 | . . . . . 1 2 . . . . Low Security (%) 57 | 100 100 100 . 100 23 40 . . . . Level 1 18 | . . . . . 76 2 . . . . Level 2 24 | . . . . . . 57 . . . . Level 3 . | . . . . . . . . . . . Level 4 . | . . . . . . . . . . . Level 5 . | . . . . . . . . . . . High Security . | . . . . . . . . . . . Max Security . | . . . . . . . . . . . Squads Dispatched 18 | . 3 . . . 6 8 . 1 . . Investigation 2 | . 1 . . . . 1 . . . . Extermination 3 | . . . . . . 3 . . . . Reinforcement 8 | . 2 . . . 3 3 . . . . Assault 1 | . . . . . . . . 1 . . Garrison 4 | . . . . . 3 1 . . . . Intercept . | . . . . . . . . . . . Construction Impeded . | . . . . . . . . . . . Haulers Reinforced 1 | . . . . . . 1 . . . . Active Scanning Responses . | . . . . . . . . . . . Cargo Convoy Interrupts 1 | . . . . . . 1 . . . . Stealth | -11 -10 -10 -10 -9 -8 -7 -7 -7 -7 -7 --------- Run | Scr Mat Min Exi Min Mat Fac Low Low Zio Dee Distress Signals 5 | . . . . . 3 2 . . . . Communications Jammed . | . . . . . . . . . . . Distress Signals . | . . . . . . . . . . . Times Spotted 174 | . 10 21 . 6 31 32 4 11 . 59 Peak Tracking Total 31 | . 3 10 . 4 10 4 3 11 . 31 Tactical Retreats 6 | . . 1 . . 1 1 1 2 . . Traps | -11 -10 -10 -10 -9 -8 -7 -7 -7 -7 -7 ------- Run | Scr Mat Min Exi Min Mat Fac Low Low Zio Dee Traps Triggered 6 | . . . . . 1 3 . 2 . . Indirectly . | . . . . . . . . . . . Trap Hack Attempts . | . . . . . . . . . . . Triggered . | . . . . . . . . . . . Disarmed . | . . . . . . . . . . . Reprogrammed . | . . . . . . . . . . . Reused . | . . . . . . . . . . . Traps Extracted . | . . . . . . . . . . . Installed . | . . . . . . . . . . . Triggered 3 | . . . . . . 1 2 . . . Exploded 2 | . . . . 1 1 . . . . . Machines | -11 -10 -10 -10 -9 -8 -7 -7 -7 -7 -7 ---------- Run | Scr Mat Min Exi Min Mat Fac Low Low Zio Dee Machines Disabled 24 | . . . . . 1 20 . . . 3 Max in Single Turn 20 | . . . . . 1 20 . . . . Machines Sabotaged . | . . . . . . . . . . . Garrisons Compromised 1 | . . . . . . 1 . . . . Overloaded Fab Kills . | . . . . . . . . . . . Hacking | -11 -10 -10 -10 -9 -8 -7 -7 -7 -7 -7 --------- Run | Scr Mat Min Exi Min Mat Fac Low Low Zio Dee Machines Accessed 20 | . 2 . 2 . 6 8 1 1 . . Terminals 7 | . 1 . . . 2 4 . . . . Fabricators 1 | . . . . . . 1 . . . . Repair Stations 3 | . . . . . 2 1 . . . . Recycling Units 3 | . 1 . . . 1 1 . . . . Scanalyzers 1 | . . . . . 1 . . . . . Garrison Access 1 | . . . . . . 1 . . . . Total Hacks 40 | . 5 . 2 . 15 16 1 1 . . Successful 20 | . 2 . 2 . 8 6 1 1 . . Failed 20 | . 3 . . . 7 10 . . . . Catastrophic 7 | . . . . . 3 4 . . . . Database Lockouts . | . . . . . . . . . . . Manual 16 | . 3 . 1 . 3 8 . . 1 . Terminals 18 | . 2 . . . 6 10 . . . . Fabricators 2 | . . . . . . 2 . . . . Repair Stations 4 | . . . . . 3 1 . . . . Recycling Units 7 | . 3 . . . 2 2 . . . . Scanalyzers 4 | . . . . . 4 . . . . . Garrison Access 1 | . . . . . . 1 . . . . Terminal Hacks 8 | . . . 2 . 1 3 1 1 . . Record 1 | . . . 1 . . . . . . . Part Schematic 1 | . . . . . . 1 . . . . Open Door 2 | . . . . . . . 1 1 . . Level Access Points 2 | . . . . . 1 1 . . . . Branch Access Points 1 | . . . . . . 1 . . . . EX-Prototype ID Bank 1 | . . . 1 . . . . . . . Fabricator Hacks 1 | . . . . . . 1 . . . . Network Status 1 | . . . . . . 1 . . . . Repair Station Hacks 2 | . . . . . 2 . . . . . Scan Component 1 | . . . . . 1 . . . . . Repair 1 | . . . . . 1 . . . . . Recycling Unit Hacks 2 | . 1 . . . . 1 . . . . Retrieve Components 2 | . 1 . . . . 1 . . . . Scanalyzer 4 | . . . . . 4 . . . . . Insert Component 2 | . . . . . 2 . . . . . Analyze 2 | . . . . . 2 . . . . . Garrison Access Hacks . | . . . . . . . . . . . Unauthorized Hacks 3 | . 1 . . . 1 1 . . . . Terminals 2 | . . . . . 1 1 . . . . Botnet 2 | . . . . . 1 1 . . . . Fabricators . | . . . . . . . . . . . Repair Stations . | . . . . . . . . . . . Recycling Units 1 | . 1 . . . . . . . . . Tunnel 1 | . 1 . . . . . . . . . Scanalyzers . | . . . . . . . . . . . Garrison Access . | . . . . . . . . . . . Data Cores Recovered . | . . . . . . . . . . . Used . | . . . . . . . . . . . Hacking Detections 14 | . 2 . . . 5 7 . . . . Full Trace Events 1 | . . . . . . 1 . . . . Feedback Events . | . . . . . . . . . . . Feedback Blocked . | . . . . . . . . . . . Robot Schematics Acquired 4 | . . . . . . . . . 4 . Robots Built . | . . . . . . . . . . . Authchips . | . . . . . . . . . . . Time . | . . . . . . . . . . . Total Robot Build Rating . | . . . . . . . . . . . Part Schematics Acquired 18 | . . . . . 2 1 . . 15 . Parts Built . | . . . . . . . . . . . Authchips . | . . . . . . . . . . . Time . | . . . . . . . . . . . Total Part Build Rating . | . . . . . . . . . . . Parts Repaired 1 | . . . . . 1 . . . . . Time 50 | . . . . . 50 . . . . . Parts Recycled . | . . . . . . . . . . . Recycled Matter . | . . . . . . . . . . . Retrieved Matter . | . . . . . . . . . . . Retrieved Components 1 | . . . . . . 1 . . . . Parts Scanalyzed 2 | . . . . . 2 . . . . . Part Schematics Acquired 2 | . . . . . 2 . . . . . Parts Damaged . | . . . . . . . . . . . Bothacking | -11 -10 -10 -10 -9 -8 -7 -7 -7 -7 -7 ------------ Run | Scr Mat Min Exi Min Mat Fac Low Low Zio Dee Used RIF Installer . | . . . . . . . . . . . Robots Hacked . | . . . . . . . . . . . Non-combat . | . . . . . . . . . . . Combat . | . . . . . . . . . . . Robot Hacks Applied . | . . . . . . . . . . . Relay Couplers Released . | . . . . . . . . . . . Fabnet Peak Effective % . | . . . . . . . . . . . Robots Rewired . | . . . . . . . . . . . Allies Hacked . | . . . . . . . . . . . Hacks Repelled . | . . . . . . . . . . . Allies | -11 -10 -10 -10 -9 -8 -7 -7 -7 -7 -7 -------- Run | Scr Mat Min Exi Min Mat Fac Low Low Zio Dee Total Allies 8 | . . . . 5 . . . . 2 1 Largest Group 5 | . . . . 5 5 . . . 2 3 Highest-Rated Group 308 | . . . . 80 80 . . . 190 308 Highest-Rated Ally 118 | . . . . 31 31 . . . 95 118 Total Orders . | . . . . . . . . . . . Ally Attacks 118 | . . . . 11 30 . . . . 77 Total Damage 4539 | . . . . 126 343 . . . . 4070 Kills 17 | . . . . 4 2 . . . . 11 Allies Corrupted . | . . . . . . . . . . . Allies Melted . | . . . . . . . . . . . Intel | -11 -10 -10 -10 -9 -8 -7 -7 -7 -7 -7 ------- Run | Scr Mat Min Exi Min Mat Fac Low Low Zio Dee Robot Analysis Total . | . . . . . . . . . . . Derelict Logs Recovered 6 | . . 2 . 1 . . 1 . 2 . Drone Launches . | . . . . . . . . . . . Drone Recoveries . | . . . . . . . . . . . Exploration | -11 -10 -10 -10 -9 -8 -7 -7 -7 -7 -7 ------------- Run | Scr Mat Min Exi Min Mat Fac Low Low Zio Dee Turns Passed 10035 | 6 895 473 477 524 1243 2306 999 451 1643 1018 Spaces Moved 6513 | 1 436 323 407 440 814 1371 576 262 1250 633 Core . | . . . . . . . . . . . Treads 509 | 1 436 52 . . . . . . . 20 Legs . | . . . . . . . . . . . Wheels 6004 | . . 271 407 440 814 1371 576 262 1250 613 Hover . | . . . . . . . . . . . Flight . | . . . . . . . . . . . Fastest Speed 98 | 160 160 115 115 105 98 120 125 125 125 125 Average Speed 126 | 160 160 122 115 112 107 123 125 161 126 141 Slowest Speed 330 | 160 160 160 115 115 145 210 125 175 155 330 Overloaded Moves . | . . . . . . . . . . . Propulsion Burnouts . | . . . . . . . . . . . Robots Hopped . | . . . . . . . . . . . Cave-ins Triggered . | . . . . . . . . . . . Exploration Rate (%) 56 | 2 48 64 72 67 55 31 66 39 87 86 Regions Visited 10 Branch Regions 7 Pre-discovered Areas 7 | . 1 1 1 . . . . . 4 . Known Exits Taken 4 | . . . . . 1 1 1 . 1 . Unknown Exits Taken 6 | 1 1 1 1 1 . . . 1 . . Scrap Searched 18 | . . 2 . 2 . . 10 1 3 . Spaces Dug 61 | . 6 8 . . 10 14 20 . 3 . Terrain Destroyed 197 | . 6 86 . . 12 43 35 5 3 7 Melee 44 | . 6 . . . 10 14 11 . 3 . Projectile 14 | . . . . . 2 . . 5 . 7 AOE 139 | . . 86 . . . 29 24 . . . Terrain Rammed . | . . . . . . . . . . . Walls Destroyed . | . . . . . . . . . . . Machines Disabled . | . . . . . . . . . . . Actions | -11 -10 -10 -10 -9 -8 -7 -7 -7 -7 -7 --------- Run | Scr Mat Min Exi Min Mat Fac Low Low Zio Dee Total 7847 | 7 588 362 416 467 1060 1793 820 287 1296 751 Wait 696 | . 91 . . 15 93 266 199 11 5 16 Move 6503 | . 435 322 406 439 813 1370 575 261 1249 633 Hop . | . . . . . . . . . . . Pick Up 78 | . 11 3 6 4 19 11 4 5 2 13 Fast Attach 49 | . 4 1 . . 13 4 3 1 7 16 Attach 56 | 2 4 3 1 . 11 5 3 3 4 20 Detach 24 | 2 7 1 . . 6 2 1 . 1 4 Swap 68 | 1 5 4 1 1 14 24 5 2 5 6 Drop 111 | 2 4 1 2 5 27 20 6 3 9 32 Fire 187 | . 12 26 . 3 52 70 13 1 . 10 Melee 74 | . 15 . . . 12 21 11 . 14 1 Ram 1 | . . 1 . . . . . . . . Kick . | . . . . . . . . . . . Crush . | . . . . . . . . . . . Escape Stasis . | . . . . . . . . . . . Rewire . | . . . . . . . . . . . Trap . | . . . . . . . . . . . Miscellaneous . | . . . . . . . . . . . Route ------- -11/Scrapyard -10/Materials -10/Mines (discovered 2 exits: [*Mat] / *Exi) -10/Exiles (discovered 2 exits: [*Min x2]) -9/Mines -8/Materials (discovered 3 exits: *Fac x3) -7/Factory (discovered 7 exits: Fac x4 / Sto / *Low x2) -7/Lower Caves -7/Lower Caves -7/Zion (discovered 2 exits: *Dee / [*Pro]) -7/Deep Caves History --------- Turn | Location | Event 7 | -11/Scrapyard | Discovered new exit (range 0) 7 | -11/Scrapyard | Entered Materials 341 | -10/Materials | Build established: Mutant 878 | -10/Materials | Discovered new exit (range 14) 902 | -10/Materials | Entered Mines 973 | -10/Mines | Assembled infested the area 1007 | -10/Mines | Core integrity fell below 50% 1031 | -10/Mines | Destroyed 13 combat bots 1103 | -10/Mines | Learned 2 Materials zone layouts 1294 | -10/Mines | Discovered new exit (range 12) 1369 | -10/Mines | Deemed a non-threat by the Exiles lab entrance 1369 | -10/Mines | Discovered new exit (range 6) 1375 | -10/Mines | Entered Exiles 1393 | -10/Exiles | Discovered new exit (range 15) 1408 | -10/Exiles | Met 8R-AWN 1422 | -10/Exiles | Met EX-HEX 1458 | -10/Exiles | Met EX-BIN 1472 | -10/Exiles | Aligned with FarCom system 1473 | -10/Exiles | Given EX-Vault access code 1500 | -10/Exiles | Opened EX-Vault 1510 | -10/Exiles | Found AWS/Autocannon 1540 | -10/Exiles | Warned to stay clear of 0b10 Research branches 1576 | -10/Exiles | Met EX-DEC 1583 | -10/Exiles | Learned location of Zion (-7) 1837 | -10/Exiles | Discovered new exit (range 14) 1852 | -10/Exiles | Left Exiles lab with AWS/Autocannon 1852 | -10/Exiles | Entered Mines 2093 | -9/Mines | Assisted by bots powering up and referring to "LRC-V3" 2134 | -9/Mines | Learned Materials security intel 2338 | -9/Mines | Discovered new exit (range 12) 2376 | -9/Mines | Entered Materials 2376 | -8/Materials | Accompanied by 5 allies 2376 | -8/Materials | Evolved 4 slots: Propulsion x1, Utility x2, Weapon x1 2381 | -8/Materials | Led the pair of lost Derelicts to an unsafe place 2404 | -8/Materials | Garrison activated, responded to threat 2675 | -8/Materials | Destroyed 8 combat bots 2968 | -8/Materials | Build established: Scavenger-Skirmisher 3244 | -8/Materials | Repaired Lgt. Angular Momentum Engine 3572 | -8/Materials | Discovered new exit (range 16) 3582 | -8/Materials | Identified exit to Factory 3619 | -8/Materials | Entered Factory 3619 | -7/Factory | Evolved 2 slots: Utility x2 4291 | -7/Factory | Identified exit to Storage 4291 | -7/Factory | Identified exit to Lower Caves 4291 | -7/Factory | Identified exit to Factory 4420 | -7/Factory | Cargo convoy interrupted 5384 | -7/Factory | Garrison activated, responded to threat 5843 | -7/Factory | Found Prototype Launcher 5843 | -7/Factory | Identified Rocket Array 5925 | -7/Factory | Entered Lower Caves 6100 | -7/Lower Caves | Build established: Mutant 6110 | -7/Lower Caves | Spotted B-75 Beast 6711 | -7/Lower Caves | Identified exit to Lower Caves 6924 | -7/Lower Caves | Entered another Lower Caves area 6933 | -7/Lower Caves | Attracted the attention of an 0b10 outpost 7230 | -7/Lower Caves | Build established: Tank 7357 | -7/Lower Caves | Discovered new exit (range 12) 7375 | -7/Lower Caves | Entered Zion 7422 | -7/Zion | System corruption cleaned by Quarantine Array 7511 | -7/Zion | Discovered new exit (range 14) 7515 | -7/Zion | Received a visual enhancement algorithm 7794 | -7/Zion | Build established: Mutant 7945 | -7/Zion | Found Prototype Device 7945 | -7/Zion | Identified Bomb Factory No. 2 8027 | -7/Zion | Found Prototype Device 8027 | -7/Zion | Identified Mobile Refinery Mk. CCLXVII 8083 | -7/Zion | Learned location of Quarantine (-3) 8127 | -7/Zion | Given A8's code to call for help 8241 | -7/Zion | Build established: Derelict-Mutant 8315 | -7/Zion | Learned 4 Factory zone layouts 8408 | -7/Zion | Rebuked by Imprinter 8621 | -7/Zion | Given the Hacking Drone Bay 8624 | -7/Zion | Found Prototype Device 8921 | -7/Zion | Discovered new exit (range 3) 8924 | -7/Zion | Saw the warning signs outside the Deep Caves entrance 8955 | -7/Zion | Identified exit to Deep Caves 8987 | -7/Zion | Enhanced Grunt warped into view, answering call for help 8988 | -7/Zion | Enhanced Grunt warped into view, answering call for help 9018 | -7/Zion | Entered Deep Caves 9018 | -7/Deep Caves | Accompanied by 2 allies 9020 | -7/Deep Caves | Met 5H-AD0 9181 | -7/Deep Caves | Z-Facility disabled 9200 | -7/Deep Caves | Attacked by Z-Imprinter 9213 | -7/Deep Caves | Allies destroyed Z-Imprinter 9239 | -7/Deep Caves | Found Prototype Protection 9239 | -7/Deep Caves | Identified Zio. Weapon Casing 9253 | -7/Deep Caves | Identified Hacking Drone Bay 9258 | -7/Deep Caves | Found Prototype Device 9258 | -7/Deep Caves | Identified Zio. Metafield Generator 9362 | -7/Deep Caves | Found Zio. Weapon Casing 9468 | -7/Deep Caves | Found Prototype Protection 9468 | -7/Deep Caves | Identified Zio. Heavy Carapace 9473 | -7/Deep Caves | Found Zio. Weapon Casing 9565 | -7/Deep Caves | Found Zio. Weapon Casing 9568 | -7/Deep Caves | Found Zio. Weapon Casing 9766 | -7/Deep Caves | Build established: Skirmisher 9867 | -7/Deep Caves | Spotted as-95256 9893 | -7/Deep Caves | Core integrity fell below 50% 9907 | -7/Deep Caves | Exposed GOLEM chamber 9913 | -7/Deep Caves | Destroyed as-95256 9914 | -7/Deep Caves | Triggered Deep Caves wall 9921 | -7/Deep Caves | Found GOLEM Unit 9948 | -7/Deep Caves | Spotted AS-88304 9955 | -7/Deep Caves | Spotted AS-14365 9972 | -7/Deep Caves | Core integrity fell below 20% 9975 | -7/Deep Caves | Destroyed AS-14365 9992 | -7/Deep Caves | Lost 11 parts (1p4n3u3w) 9996 | -7/Deep Caves | Destroyed 40 combat bots 10004 | -7/Deep Caves | Spotted as-22491 10036 | -7/Deep Caves | Destroyed by as-22491 with Assembled Focal Cannon Last Messages --------------- 09961_ Com. Wheel destroyed. 09961_ System corrupted by crushing effect (+4). 09966_ as-92391 destroyed. 09969_ as-99953 released from Mobile Assembly Unit. 09969_ Penetrated by Slug. 09972_ as-56384 destroyed. 09972_ as-82742 destroyed. 09975_ Penetrated by Slug. 09975_ as-99953 destroyed. 09975_ Destroyed Com. Matter Pod. 09975_ AS-14365 destroyed. 09995_ Acquired Unknown Treads. 09995_ Identified Med. Treads. 10004_ =A|